bitfinex-derivatives/quotes_BTCF0:USTF0_20241120
["timestamp","ask_amount","ask_price","bid_price","bid_amount"]
[1732126792810,0.06654682,93922.0,93921.0,0.26050279]
[1732126793011,0.053169,93911.0,93908.0,0.37927064]
[1732126793316,0.06654682,93922.0,93903.0,0.0636]
[1732126793317,0.053173,93904.0,93903.0,0.0636]
[1732126793505,0.06663185,93904.0,93903.0,0.0636]
[1732126794013,0.06664294,93904.0,93903.0,0.0636]
[1732126795516,0.06664294,93904.0,93903.0,0.0307]
[1732126797106,0.06664294,93904.0,93889.0,0.0323]
[1732126797107,0.053174,93901.0,93889.0,0.0323]
[1732126797308,0.06625993,93901.0,93891.0,0.033]
[1732126797812,0.08720122,93901.0,93891.0,0.033]
[1732126798310,0.09384883,93901.0,93891.0,0.033]
[1732126800506,0.05318,93892.0,93890.0,0.0301]
[1732126800705,0.053181,93890.0,93888.0,0.00011905]
[1732126800904,0.03402722,93889.0,93888.0,0.00011905]
[1732126801812,0.03402722,93889.0,93864.0,0.37943943]
[1732126801813,0.053195,93866.0,93864.0,0.37943943]
[1732126802007,0.053199,93858.0,93857.0,0.0319]
[1732126802207,0.053199,93858.0,93845.0,0.053206]
[1732126802208,0.0532,93857.0,93856.0,0.37943943]
[1732126802420,0.053203,93852.0,93851.0,0.053202]
[1732126802719,0.3608,93858.0,93857.0,0.0532]
[1732126802918,0.053201,93855.0,93853.0,0.053202]
[1732126803116,8.724e-05,93854.0,93853.0,0.053202]
[1732126803421,0.01284256,93854.0,93853.0,0.053202]
[1732126803918,0.06604456,93854.0,93850.0,0.053204]
[1732126804115,0.06604456,93854.0,93851.0,0.053203]
[1732126804116,0.01275532,93853.0,93851.0,0.053203]
[1732126804316,0.06595832,93852.0,93849.0,0.0319]
[1732126804523,0.053203,93852.0,93849.0,0.0319]
[1732126804709,0.01260549,93851.0,93849.0,0.0319]
[1732126804912,0.01260549,93850.0,93849.0,0.0319]
[1732126805107,0.06580949,93850.0,93849.0,0.0319]
[1732126805824,0.01260549,93850.0,93849.0,0.0319]
[1732126806314,0.03299397,93850.0,93849.0,0.085104]
[1732126806518,0.03313104,93850.0,93849.0,0.404784]
[1732126806709,0.03313104,93850.0,93849.0,0.0319]
[1732126806910,0.08633537,93850.0,93849.0,0.0319]
[1732126807114,0.09298533,93850.0,93849.0,0.0319]
[1732126807316,0.08633537,93850.0,93849.0,0.0319]
[1732126807914,0.03313137,93850.0,93849.0,0.0319]
[1732126808126,0.01274267,93850.0,93849.0,0.3927]
[1732126808321,0.053204,93850.0,93849.0,0.3927]
[1732126808522,0.06603316,93850.0,93849.0,0.3927]
[1732126809015,0.08655931,93850.0,93849.0,0.3927]
[1732126809210,0.03335531,93850.0,93849.0,0.3927]
[1732126809412,8.724e-05,93854.0,93849.0,0.3927]
[1732126809615,0.3608,93866.0,93849.0,0.3927]
[1732126809616,0.51568327,93866.0,93849.0,0.3927]
[1732126809922,0.053204,93850.0,93849.0,0.3927]
[1732126810622,0.05328043,93850.0,93849.0,0.3927]
[1732126812118,0.05328043,93850.0,93849.0,0.3608]
[1732126812511,0.05328043,93850.0,93845.0,9.894e-05]
[1732126812512,0.053206,93846.0,93845.0,9.894e-05]
[1732126813019,0.05985631,93846.0,93845.0,9.894e-05]
[1732126813321,0.05985688,93846.0,93845.0,9.894e-05]
[1732126815014,0.07628859,93846.0,93845.0,9.894e-05]
[1732126815242,0.05985688,93846.0,93845.0,9.894e-05]
[1732126817828,0.05985688,93846.0,93817.0,0.0313]
[1732126817829,0.42795118,93846.0,93817.0,0.0313]
[1732126818124,0.42795118,93846.0,93814.0,0.032]
[1732126818125,0.053223,93816.0,93814.0,0.032]
[1732126818330,0.053224,93815.0,93814.0,0.032]
[1732126818834,0.1016203,93820.0,93802.0,0.00012874]
[1732126818835,0.053231,93803.0,93802.0,0.00012874]
[1732126820131,0.07344029,93803.0,93802.0,0.00012874]
[1732126820526,0.053231,93803.0,93802.0,0.00012874]
[1732126821028,0.07351767,93803.0,93802.0,0.00012874]
[1732126821228,0.07359722,93803.0,93802.0,0.00012874]
[1732126821540,0.01644062,93822.0,93819.0,0.053221]
[1732126821727,0.3608,93834.0,93802.0,0.31996874]
[1732126821728,0.01642368,93825.0,93821.0,0.3608]
[1732126821921,0.01642368,93825.0,93822.0,0.0303]
[1732126821922,0.053219,93823.0,93822.0,0.0303]
[1732126822231,0.1016203,93828.0,93814.0,0.0328]
[1732126822232,0.3608,93827.0,93814.0,0.0328]
[1732126822530,0.00665234,93826.0,93814.0,0.0328]
[1732126822724,0.00676874,93825.0,93814.0,0.0328]
[1732126822928,0.00665247,93824.0,93814.0,0.0328]
[1732126823329,0.00665247,93823.0,93814.0,0.0328]
[1732126823533,0.053224,93815.0,93813.0,0.3608]
[1732126823827,0.0001164,93825.0,93813.0,0.3608]
[1732126824130,0.0001164,93825.0,93824.0,0.414019]
[1732126824539,0.00676852,93825.0,93824.0,0.733779]
[1732126824725,0.3608,93844.0,93824.0,0.733779]
[1732126824726,0.01642997,93840.0,93833.0,0.053213]
[1732126824921,0.0477246,93840.0,93839.0,0.3608]
[1732126825125,0.1016203,93849.0,93839.0,0.3608]
[1732126825336,0.053205,93849.0,93841.0,0.053209]
[1732126825637,0.053206,93847.0,93840.0,0.053209]
[1732126825822,0.053206,93847.0,93840.0,0.1016203]
[1732126826137,9.438e-05,93848.0,93840.0,0.4624203]
[1732126826324,9.438e-05,93848.0,93847.0,0.1548263]
[1732126826527,9.438e-05,93848.0,93847.0,0.4745063]
[1732126826733,9.438e-05,93848.0,93847.0,0.31968]
[1732126826932,9.438e-05,93848.0,93845.0,0.053207]
[1732126827131,9.438e-05,93848.0,93844.0,0.15144]
[1732126827334,0.05330038,93848.0,93844.0,0.15144]
[1732126827635,0.053209,93841.0,93840.0,0.6624]
[1732126827836,0.053209,93841.0,93840.0,0.6608]
[1732126828229,0.053208,93844.0,93840.0,0.6608]
[1732126828437,0.053206,93847.0,93840.0,0.6608]
[1732126828633,9.438e-05,93848.0,93840.0,0.3608]
[1732126828831,0.053208,93844.0,93840.0,0.3608]
[1732126829036,0.00665049,93847.0,93840.0,0.3608]
[1732126829334,0.00665049,93847.0,93844.0,0.15509726]
[1732126829534,0.00665049,93847.0,93846.0,0.414006]
[1732126830037,9.438e-05,93848.0,93846.0,0.98048]
[1732126830244,9.438e-05,93848.0,93846.0,0.6608]
[1732126830545,9.438e-05,93848.0,93847.0,0.405186]
[1732126831340,0.0049,93868.0,93866.0,0.053195]
[1732126831526,0.01650106,93873.0,93872.0,0.053192]
[1732126831727,0.01650106,93880.0,93874.0,0.05319]
[1732126831937,0.01650106,93880.0,93879.0,0.51589726]
[1732126832241,0.01650106,93880.0,93879.0,0.516009]
[1732126832546,0.01650106,93880.0,93879.0,0.39251174]
[1732126833042,0.00011266,93884.0,93879.0,0.39251174]
[1732126833239,0.00011266,93884.0,93882.0,0.053186]
[1732126833443,0.00011266,93884.0,93879.0,0.72335174]
[1732126833640,0.053187,93881.0,93879.0,0.72171174]
[1732126833940,0.15509726,93880.0,93879.0,0.00011174]
[1732126834141,0.053196,93864.0,93863.0,0.3608]
[1732126834445,0.05319,93876.0,93855.0,0.3608]
[1732126834633,0.053196,93865.0,93864.0,0.3608]
[1732126835427,0.15509726,93880.0,93864.0,0.3608]
[1732126835428,0.053193,93870.0,93864.0,0.6804]
[1732126835626,0.053194,93868.0,93864.0,0.3608]
[1732126835937,0.053196,93865.0,93855.0,0.3608]
[1732126836442,0.053201,93856.0,93855.0,0.3608]
[1732126836831,0.053202,93853.0,93852.0,0.00013747]
[1732126837031,0.05380987,93860.0,93852.0,0.00013747]
[1732126837231,0.0121149,93859.0,93852.0,0.00013747]
[1732126837437,0.053202,93854.0,93852.0,0.00013747]
[1732126839135,0.06522405,93853.0,93852.0,0.00013747]
[1732126839337,0.09562405,93853.0,93852.0,0.00013747]
[1732126839634,0.41526405,93853.0,93852.0,0.00013747]
[1732126840139,0.14981155,93853.0,93852.0,0.00013747]
[1732126840636,0.1377895,93853.0,93852.0,0.00013747]
[1732126840827,0.14974293,93853.0,93852.0,0.00013747]
[1732126841237,0.1377895,93853.0,93852.0,0.00013747]
[1732126843633,0.1377895,93853.0,93836.0,0.31848314]
[1732126843634,0.053211,93838.0,93836.0,0.31848314]
[1732126843942,0.053211,93838.0,93804.0,0.66211239]
[1732126843943,0.053219,93823.0,93821.0,0.38026134]
[1732126844132,0.053221,93821.0,93809.0,0.36236]
[1732126844332,0.053221,93821.0,93809.0,0.3608]
[1732126844538,8.982e-05,93820.0,93809.0,0.3608]
[1732126844842,8.982e-05,93820.0,93806.0,0.3608]
[1732126844843,0.15509726,93812.0,93806.0,0.3608]
[1732126845050,0.053228,93807.0,93806.0,0.3608]
[1732126845939,0.053232,93801.0,93800.0,0.10012138]
[1732126846540,0.053232,93801.0,93800.0,0.46092138]
[1732126846844,0.053232,93801.0,93800.0,0.10012138]
[1732126848641,0.10681393,93801.0,93800.0,0.10012138]
[1732126851037,0.053232,93801.0,93800.0,0.10012138]
[1732126851244,0.053226,93811.0,93800.0,0.46092138]
[1732126851448,0.053232,93801.0,93800.0,0.46092138]
[1732126855463,0.373072,93801.0,93800.0,0.18095751]
[1732126855657,0.373072,93801.0,93775.0,0.0329]
[1732126855658,0.053246,93776.0,93775.0,0.0329]
[1732126855850,0.053246,93777.0,93775.0,0.086146]
[1732126856055,0.0049,93799.0,93798.0,0.053234]
[1732126856362,0.31984,93801.0,93799.0,0.053233]
[1732126856571,0.31984,93801.0,93800.0,0.3608]
[1732126856864,0.31984,93801.0,93800.0,0.4561]
[1732126858668,0.31984,93801.0,93800.0,0.50838529]
[1732126859164,8.982e-05,93820.0,93800.0,0.66348255]
[1732126859375,8.982e-05,93820.0,93819.0,0.3608]
[1732126861858,8.982e-05,93820.0,93819.0,0.51569118]
[1732126862371,0.0049,93843.0,93819.0,0.46246918]
[1732126862670,0.05321,93841.0,93838.0,0.3608]
[1732126862869,0.46246918,93856.0,93838.0,0.3608]
[1732126863056,0.05321,93840.0,93838.0,0.3608]
[1732126863254,0.05321,93840.0,93825.0,0.10166918]
[1732126863255,0.053226,93812.0,93799.0,0.46977802]
[1732126863455,0.053242,93784.0,93769.0,0.82241078]
[1732126863672,0.053242,93784.0,93783.0,0.4722671]
[1732126863673,0.2047201,93784.0,93783.0,0.4722671]
[1732126863861,0.05325,93770.0,93769.0,0.82241078]
[1732126864165,0.92621675,93770.0,93769.0,0.82133078]
[1732126864559,0.92621675,93770.0,93768.0,0.00201]
[1732126864769,0.97939416,93770.0,93768.0,0.00201]
[1732126865273,0.053268,93738.0,93728.0,0.3608]
[1732126865465,0.92614416,93770.0,93728.0,0.3608]
[1732126865466,0.053269,93737.0,93734.0,0.1508]
[1732126865657,0.3608,93735.0,93734.0,0.1508]
[1732126865860,0.3608,93735.0,93722.0,0.358]
[1732126866056,0.3608,93735.0,93734.0,0.1508]
[1732126866261,0.51272676,93743.0,93734.0,0.1508]
[1732126866262,0.053267,93740.0,93734.0,0.1508]
[1732126866672,0.3608,93743.0,93734.0,0.1508]
[1732126866871,0.053265,93743.0,93734.0,0.1508]
[1732126867061,0.3608,93735.0,93734.0,0.1508]
[1732126867264,0.053269,93735.0,93721.0,0.05452375]
[1732126867462,0.36091921,93734.0,93722.0,0.35804]
[1732126867663,0.053273,93728.0,93712.0,0.05242944]
[1732126867870,0.053273,93728.0,93719.0,0.15084]
[1732126868473,0.053273,93728.0,93727.0,9.612e-05]
[1732126869273,0.053284,93709.0,93708.0,0.032]
[1732126869480,0.414084,93709.0,93708.0,0.032]
[1732126869865,0.3608,93709.0,93696.0,0.15084]
[1732126870073,0.414089,93701.0,93696.0,0.15084]
[1732126870275,0.414089,93701.0,93694.0,0.15084]
[1732126870479,0.414089,93701.0,93688.0,0.0323]
[1732126870679,0.414089,93701.0,93688.0,0.18314]
[1732126871781,0.414089,93701.0,93688.0,0.15084]
[1732126872371,0.3608,93701.0,93684.0,0.0649]
[1732126872588,0.3608,93688.0,93684.0,0.0649]
[1732126872970,0.00056001,93701.0,93687.0,0.7216]
[1732126873274,0.0542133,93709.0,93684.0,0.0649]
[1732126873275,0.0049,93721.0,93720.0,0.053278]
[1732126873482,0.05236022,93733.0,93721.0,0.053277]
[1732126873682,0.05236022,93733.0,93723.0,0.15136675]
[1732126873881,0.05236022,93733.0,93723.0,0.3608]
[1732126874072,0.053276,93724.0,93721.0,0.0325]
[1732126874274,0.3608,93726.0,93712.0,0.3608]
[1732126874483,0.3608,93727.0,93703.0,0.15136675]
[1732126874673,0.3608,93727.0,93709.0,0.3608]
[1732126874992,0.3608,93727.0,93712.0,0.053282]
[1732126875175,0.00011921,93734.0,93685.0,0.00124]
[1732126875176,0.3608,93713.0,93685.0,0.00124]
[1732126875373,0.56546375,93686.0,93684.0,0.3]
[1732126876570,0.053299,93684.0,93671.0,0.0325]
[1732126876782,0.59914155,93681.0,93671.0,0.0325]
[1732126877481,0.59914155,93681.0,93670.0,0.00160096]
[1732126877684,0.59914155,93681.0,93658.0,0.0332]
[1732126877685,0.3608,93681.0,93660.0,0.053312]
[1732126877875,0.3608,93667.0,93658.0,0.0332]
[1732126878187,0.3608,93659.0,93658.0,0.086513]
[1732126879188,0.00056001,93667.0,93666.0,0.053309]
[1732126879479,0.3608,93689.0,93672.0,0.053305]
[1732126879877,0.3608,93689.0,93665.0,0.15096]
[1732126880279,0.05233982,93690.0,93665.0,0.15096]
[1732126880280,0.3608,93697.0,93684.0,0.053298]
[1732126880482,0.3608,93707.0,93692.0,0.053293]
[1732126880483,0.05307535,93699.0,93692.0,0.053293]
[1732126880787,0.3608,93707.0,93683.0,0.3608]
[1732126880984,0.3608,93699.0,93681.0,0.15096]
[1732126881192,0.3608,93699.0,93684.0,0.053298]
[1732126881690,0.3608,93691.0,93684.0,0.053298]
[1732126881875,0.3608,93691.0,93675.0,0.053303]
[1732126882078,0.3608,93682.0,93671.0,0.7544]
[1732126882277,0.3608,93682.0,93671.0,0.3608]
[1732126882695,0.4141,93682.0,93671.0,0.3608]
[1732126883080,0.3608,93682.0,93671.0,0.3608]
[1732126883692,0.3608,93682.0,93678.0,0.23834155]
[1732126884085,0.46711505,93694.0,93678.0,0.23834155]
[1732126884285,0.3608,93684.0,93678.0,0.23834155]
[1732126884587,0.414099,93684.0,93672.0,0.1506]
[1732126884987,0.414099,93684.0,93672.0,0.203905]
[1732126884988,0.3608,93684.0,93672.0,0.203905]
[1732126885183,0.3608,93684.0,93673.0,0.0315]
[1732126885492,0.3608,93690.0,93681.0,0.0533]
[1732126885703,0.3608,93688.0,93681.0,0.0533]
[1732126885888,0.3608,93685.0,93678.0,0.29164355]
[1732126886094,0.3608,93685.0,93678.0,0.23834155]
[1732126886594,0.3608,93702.0,93689.0,0.053295]
[1732126886895,0.3608,93702.0,93696.0,0.053292]
[1732126887487,0.3608,93702.0,93694.0,0.15064]
[1732126887488,0.3108,93702.0,93694.0,0.15064]
[1732126887684,0.053284,93710.0,93694.0,0.15064]
[1732126887685,0.3608,93710.0,93699.0,0.05329]
[1732126887893,0.3608,93710.0,93694.0,0.15064]
[1732126887894,0.3608,93710.0,93709.0,0.23834155]
[1732126888096,0.3608,93710.0,93703.0,0.053287]
[1732126888502,0.053285,93708.0,93696.0,0.59914155]
[1732126888806,0.3608,93710.0,93696.0,0.3608]
[1732126888994,0.3608,93710.0,93702.0,0.053288]
[1732126889605,0.3608,93710.0,93696.0,0.41282834]
[1732126889900,0.3608,93710.0,93696.0,0.46611934]
[1732126890098,0.3608,93710.0,93698.0,0.05329]
[1732126890396,0.3608,93710.0,93702.0,0.053288]
[1732126890699,0.3608,93710.0,93696.0,0.41282834]
[1732126890901,0.3608,93710.0,93697.0,0.053291]
[1732126890902,0.053285,93708.0,93697.0,0.053291]
[1732126891105,0.2608,93710.0,93704.0,0.053287]
[1732126891302,0.00010422,93712.0,93711.0,0.053283]
[1732126891807,0.00010422,93712.0,93706.0,0.053286]
[1732126892099,0.00010422,93712.0,93705.0,0.0311]
[1732126892299,0.00010422,93712.0,93710.0,0.053283]
[1732126892607,0.01633543,93769.0,93711.0,1.11276]
[1732126892789,0.01633543,93769.0,93753.0,0.3608]
[1732126892988,0.01633543,93769.0,93754.0,0.38894155]
[1732126893189,0.3608,93793.0,93754.0,0.38894155]
[1732126893190,0.01633543,93773.0,93761.0,0.3608]
[1732126893388,0.05311696,93780.0,93761.0,0.3608]
[1732126893389,0.3608,93784.0,93761.0,0.3608]
[1732126893597,0.3608,93784.0,93763.0,0.053253]
[1732126893598,0.08343602,93783.0,93763.0,0.053253]
[1732126893793,0.01157781,93782.0,93763.0,0.053253]
[1732126894005,0.05333426,93783.0,93763.0,0.053253]
[1732126894006,0.01162051,93781.0,93763.0,0.053253]
[1732126894193,0.3608,93776.0,93761.0,0.3608]
[1732126894700,0.3608,93776.0,93765.0,0.053252]
[1732126895196,9.226e-05,93783.0,93770.0,0.3608]
[1732126895400,9.226e-05,93783.0,93782.0,0.3608]
[1732126895592,0.4608,93800.0,93782.0,0.3608]
[1732126895593,0.1,93800.0,93783.0,0.053242]
[1732126895792,0.1,93800.0,93790.0,0.3608]
[1732126896100,0.04418268,93800.0,93799.0,0.3608]
[1732126896495,0.053213,93836.0,93811.0,0.053226]
[1732126896699,0.053215,93832.0,93815.0,0.3608]
[1732126896888,7.539e-05,93834.0,93816.0,0.1506]
[1732126897094,7.539e-05,93834.0,93821.0,0.05322]
[1732126897390,7.539e-05,93834.0,93824.0,0.053218]
[1732126897592,7.539e-05,93834.0,93816.0,0.1506]
[1732126897593,7.539e-05,93834.0,93825.0,0.414018]
[1732126898496,7.539e-05,93834.0,93833.0,0.414014]
[1732126898697,7.539e-05,93834.0,93833.0,0.3608]
[1732126899007,0.36087539,93834.0,93825.0,0.3608]
[1732126899206,0.36087539,93834.0,93816.0,0.3608]
[1732126899504,0.3608,93826.0,93809.0,0.17180942]
[1732126900008,0.3608,93830.0,93813.0,0.3608]
[1732126900302,0.3608,93822.0,93813.0,0.3608]
[1732126900603,0.3608,93814.0,93789.0,0.3608]
[1732126900790,0.3608,93814.0,93780.0,0.00144]
[1732126900791,0.3608,93800.0,93794.0,0.00159932]
[1732126901000,0.23834155,93810.0,93794.0,0.00159932]
[1732126901001,0.414035,93795.0,93794.0,0.00159932]
[1732126901303,0.41414449,93795.0,93794.0,0.00159932]
[1732126901808,0.36090949,93795.0,93772.0,0.44156933]
[1732126901999,0.3608,93784.0,93773.0,0.053248]
[1732126902305,0.3608,93784.0,93778.0,0.053245]
[1732126903195,0.3608,93784.0,93773.0,0.15052]
[1732126903395,0.3608,93784.0,93773.0,0.203767]
[1732126903611,0.3608,93784.0,93775.0,0.053246]
[1732126903806,0.3608,93784.0,93772.0,0.44156933]
[1732126903996,0.053245,93778.0,93772.0,0.44156933]
[1732126904203,0.3608,93784.0,93772.0,0.44156933]
[1732126905310,0.3608,93784.0,93772.0,0.49481733]
[1732126905702,0.3608,93784.0,93772.0,0.44156933]
[1732126905903,0.414042,93784.0,93772.0,0.44156933]
[1732126906506,0.053242,93783.0,93772.0,0.44156933]
[1732126906903,0.3608,93784.0,93772.0,0.44156933]
[1732126907108,0.3608,93773.0,93772.0,0.44156933]
[1732126907613,0.68072,93773.0,93772.0,0.29186933]
[1732126907915,0.053251,93767.0,93751.0,0.15048]
[1732126908110,0.414051,93767.0,93751.0,0.15048]
[1732126908315,0.053253,93764.0,93751.0,0.15048]
[1732126908811,0.053255,93760.0,93751.0,0.15048]
[1732126909109,0.053255,93760.0,93753.0,0.053259]
[1732126909312,0.3608,93775.0,93765.0,0.053252]
[1732126909903,0.3608,93775.0,93770.0,0.053249]
[1732126910403,0.3608,93775.0,93762.0,0.053254]
[1732126910614,0.053253,93765.0,93760.0,0.00056254]
[1732126910818,0.053251,93767.0,93760.0,0.00056254]
[1732126911319,0.053248,93774.0,93760.0,0.00056254]
[1732126911614,0.053252,93766.0,93760.0,0.00056254]
[1732126912012,0.3608,93775.0,93760.0,0.00056254]
[1732126912219,0.053253,93765.0,93760.0,0.00056254]
[1732126912419,0.3608,93764.0,93761.0,0.053255]
[1732126913309,0.3608,93764.0,93760.0,0.00056254]
[1732126913509,0.053254,93762.0,93760.0,0.00056254]
[1732126913915,0.3608,93764.0,93760.0,0.00056254]
[1732126914121,0.053255,93761.0,93760.0,0.00056254]
[1732126917408,0.05339215,93761.0,93760.0,0.00056254]
[1732126917614,0.05339215,93761.0,93735.0,0.005]
[1732126917615,0.053269,93736.0,93735.0,0.005]
[1732126917819,0.7216,93736.0,93731.0,0.5369]
[1732126918014,0.053271,93733.0,93731.0,0.5369]
[1732126918412,0.053271,93733.0,93731.0,0.590171]
[1732126919123,0.053271,93733.0,93731.0,0.5369]
[1732126920214,0.10595578,93733.0,93731.0,0.5369]
[1732126921326,0.3608,93735.0,93734.0,0.05327]
[1732126921619,0.41308954,93735.0,93734.0,0.05327]
[1732126921829,0.053271,93734.0,93733.0,0.05327]
[1732126922215,0.3608,93735.0,93733.0,0.05327]
[1732126922718,0.3608,93735.0,93733.0,0.20379]
[1732126923315,0.053261,93750.0,93733.0,0.05327]
[1732126923512,0.053269,93737.0,93733.0,0.05406324]
[1732126923722,0.3608,93738.0,93732.0,0.15052]
[1732126924034,0.053271,93733.0,93732.0,0.15052]
[1732126924214,0.053271,93733.0,93731.0,0.5369]
[1732126925217,0.3608,93732.0,93731.0,0.5369]
[1732126928326,0.37329365,93732.0,93731.0,0.5369]
[1732126928721,0.52478618,93732.0,93731.0,0.5369]
[1732126928927,0.54456405,93732.0,93731.0,0.5369]
[1732126929318,0.106544,93731.0,93707.0,0.005]
[1732126929523,0.053282,93713.0,93698.0,0.005]
[1732126929727,0.3608,93719.0,93679.0,0.005]
[1732126929728,0.414089,93701.0,93679.0,0.005]
[1732126930029,0.774889,93701.0,93680.0,0.02130745]
[1732126930528,0.774889,93701.0,93691.0,0.053294]
[1732126930729,0.774889,93701.0,93684.0,0.053298]
[1732126930931,0.774889,93701.0,93688.0,0.053296]
[1732126931133,0.774889,93701.0,93682.0,0.053299]
[1732126931329,0.774889,93701.0,93681.0,0.00011593]
[1732126931554,0.0533,93682.0,93681.0,0.00011593]
[1732126931753,0.4141,93682.0,93681.0,0.00011593]
[1732126932141,0.4141,93682.0,93665.0,0.17186745]
[1732126932142,0.4141,93682.0,93665.0,0.02130745]
[1732126932347,0.4141,93682.0,93662.0,0.0312]
[1732126932348,0.053309,93665.0,93662.0,0.0312]
[1732126932547,0.3608,93667.0,93664.0,0.05331]
[1732126932855,0.05331,93665.0,93662.0,0.0312]
[1732126933155,0.3608,93667.0,93662.0,0.0312]
[1732126933459,0.3608,93667.0,93665.0,0.053309]
[1732126934244,0.3608,93682.0,93664.0,0.3608]
[1732126934449,0.0661871,93681.0,93673.0,0.053304]
[1732126934749,0.0128871,93680.0,93666.0,0.053309]
[1732126935063,0.0128871,93679.0,93664.0,0.3608]
[1732126935254,0.053306,93672.0,93664.0,0.3608]
[1732126935560,0.3608,93673.0,93662.0,0.0312]
[1732126935757,0.053309,93665.0,93662.0,0.0312]
[1732126936062,0.053305,93672.0,93662.0,0.0312]
[1732126936261,0.41413455,93682.0,93662.0,0.0312]
[1732126936555,0.3608,93666.0,93662.0,0.0312]
[1732126936959,0.053307,93669.0,93662.0,0.0312]
[1732126937345,0.3608,93667.0,93662.0,0.0312]
[1732126937564,0.01282259,93666.0,93662.0,0.0312]
[1732126937765,0.053305,93673.0,93662.0,0.0312]
[1732126937950,0.3608,93667.0,93662.0,0.0312]
[1732126938151,0.053304,93674.0,93662.0,0.0312]
[1732126938657,0.23827313,93677.0,93663.0,0.3608]
[1732126938865,0.05331,93664.0,93662.0,0.0312]
[1732126939160,0.3608,93674.0,93662.0,0.0312]
[1732126939351,0.01290425,93673.0,93662.0,0.0312]
[1732126939548,0.29158313,93664.0,93662.0,0.0312]
[1732126939750,0.23827313,93664.0,93652.0,0.31627295]
[1732126939948,0.3608,93656.0,93650.0,0.00012337]
[1732126940150,0.414109,93666.0,93650.0,0.00012337]
[1732126940352,0.3608,93666.0,93653.0,0.25306413]
[1732126940556,0.3608,93665.0,93651.0,0.25306413]
[1732126940755,0.3608,93665.0,93663.0,0.05331]
[1732126940957,0.3608,93682.0,93662.0,0.1506]
[1732126941161,0.3608,93673.0,93663.0,0.1506]
[1732126941459,0.3608,93673.0,93659.0,0.1506]
[1732126941460,0.053311,93662.0,93659.0,0.1506]
[1732126941663,0.3608,93664.0,93659.0,0.1506]
[1732126941664,0.3608,93664.0,93660.0,0.053312]
[1732126942049,0.3608,93664.0,93659.0,0.1506]
[1732126942252,0.3608,93664.0,93661.0,0.25306413]
[1732126942558,0.3608,93662.0,93661.0,0.25306413]
[1732126942762,0.053311,93662.0,93661.0,0.25306413]
[1732126943466,0.414111,93662.0,93653.0,0.36958895]
[1732126943660,0.414111,93662.0,93654.0,0.1506]
[1732126943856,0.3608,93662.0,93656.0,0.053314]
[1732126944059,0.3608,93674.0,93673.0,0.053305]
[1732126944261,0.3608,93685.0,93683.0,0.053299]
[1732126944456,0.3608,93688.0,93684.0,0.50146]
[1732126944657,0.3608,93688.0,93686.0,0.053297]
[1732126944853,0.3608,93688.0,93685.0,0.18102]
[1732126945164,0.053303,93675.0,93674.0,0.0328]
[1732126946461,0.3608,93680.0,93670.0,0.15052]
[1732126946659,0.3608,93678.0,93666.0,0.0307]
[1732126946860,0.3608,93667.0,93666.0,0.0307]
[1732126947263,0.37350154,93667.0,93666.0,0.0307]
[1732126947854,0.053311,93661.0,93658.0,0.15052]
[1732126948060,0.37350154,93667.0,93658.0,0.15052]
[1732126948061,0.05331,93665.0,93658.0,0.15052]
[1732126948271,0.01270402,93664.0,93662.0,0.25363508]
[1732126948665,0.01270402,93663.0,93658.0,0.15052]
[1732126948864,0.3608,93660.0,93659.0,0.053312]
[1732126949065,0.37350402,93660.0,93659.0,0.053312]
[1732126950073,0.37350402,93660.0,93658.0,0.15052]
[1732126950368,0.01270402,93659.0,93658.0,0.15052]
[1732126950756,0.3608,93662.0,93658.0,0.15052]
[1732126950959,0.01277974,93659.0,93658.0,0.203833]
[1732126951559,0.01277974,93659.0,93658.0,0.44210613]
[1732126951763,0.3608,93678.0,93669.0,0.053307]
[1732126951965,0.02695359,93677.0,93669.0,0.053307]
[1732126952271,0.0202913,93676.0,93669.0,0.053307]
[1732126952470,0.0202913,93675.0,93669.0,0.053307]
[1732126952665,0.0202913,93674.0,93669.0,0.053307]
[1732126952866,0.0202913,93673.0,93669.0,0.053307]
[1732126953072,0.0202913,93672.0,93669.0,0.053307]
[1732126953270,0.053303,93676.0,93669.0,0.053307]
[1732126953271,0.0202913,93671.0,93669.0,0.053307]
[1732126953476,0.41362652,93678.0,93669.0,0.053307]
[1732126953477,0.3608,93678.0,93676.0,0.053303]
[1732126953666,0.3608,93682.0,93680.0,0.0533]
[1732126953872,0.01640231,93691.0,93681.0,0.32024]
[1732126954068,0.01640231,93691.0,93688.0,0.053296]
[1732126954276,0.01640231,93691.0,93687.0,0.31719647]
[1732126954463,0.3608,93699.0,93686.0,0.31719647]
[1732126954464,0.3608,93688.0,93686.0,0.31719647]
[1732126954667,0.3608,93688.0,93686.0,0.053297]
[1732126955281,0.3608,93688.0,93687.0,0.15052]
[1732126955580,0.05329,93698.0,93687.0,0.47072]
[1732126955778,0.05329,93698.0,93692.0,0.31776075]
[1732126956177,0.00666074,93697.0,93692.0,0.31776075]
[1732126956475,0.053292,93695.0,93691.0,0.37952754]
[1732126956669,0.00666074,93696.0,93688.0,0.37952754]
[1732126956870,0.053292,93695.0,93694.0,0.31812721]
[1732126957171,0.05995294,93695.0,93685.0,0.053297]
[1732126957369,0.00666094,93694.0,93685.0,0.053297]
[1732126957569,0.00666094,93693.0,93687.0,0.053296]
[1732126957773,0.00666094,93692.0,93691.0,0.053294]
[1732126957982,0.00666094,93692.0,93685.0,0.3202]
[1732126957983,8.788e-05,93700.0,93698.0,0.05329]
[1732126958367,8.788e-05,93700.0,93699.0,0.50790183]
[1732126958878,8.788e-05,93700.0,93699.0,0.5079995]
[1732126959086,8.788e-05,93700.0,93699.0,0.39394457]
[1732126959285,8.788e-05,93700.0,93699.0,0.0623]
[1732126959674,8.788e-05,93700.0,93698.0,0.44577432]
[1732126959981,0.053291,93697.0,93696.0,0.44577432]
[1732126960180,0.053291,93697.0,93692.0,0.50298812]
[1732126960181,0.053293,93693.0,93692.0,0.50298812]
[1732126960373,0.053294,93691.0,93690.0,0.94876244]
[1732126961384,8.788e-05,93700.0,93692.0,0.053294]